fUSD/lending_fUSD_20260308
["ID","MTS","AMOUNT","RATE_DAILY","PERIOD"]
[407959261,1772929841755,-504.0,0.00046077,28]
[407959262,1772929841763,-1729.31334847,0.00046122,18]
[407959263,1772929841772,-1729.31334845,0.00046122,18]
[407959264,1772929841782,-1729.31334845,0.00046122,18]
[407959265,1772929841791,-1729.31334845,0.00046122,18]
[407959266,1772929841800,-1729.31334845,0.00046122,18]
[407959267,1772929841809,-1729.31334845,0.00046122,18]
[407959268,1772929841818,-1729.31334845,0.00046122,18]
[407959269,1772929841828,-1729.31334845,0.00046122,18]
[407959270,1772929841837,-1729.31334845,0.00046122,18]
[407959271,1772929841846,-1729.31334845,0.00046122,18]
[407959272,1772929841856,-1729.31334845,0.00046122,18]
[407959273,1772929841865,-520.18,0.000462,14]
[407959274,1772929841874,-1043.0,0.00046239,120]
[407959275,1772929841883,-847.0,0.00046242,16]
[407959276,1772929841892,-2000.0,0.000463,2]
[407959277,1772929841901,-500.0,0.00046301,120]
[407959278,1772929841911,-500.0,0.00046411,2]
[407959279,1772929841920,-150.0,0.00046495,120]
[407959280,1772929841930,-25042.16,0.00046505,7]
[407959281,1772929841939,-500.0,0.00046575,2]
[407959282,1772929841948,-500.0,0.00046575,2]
[407959283,1772929841957,-500.0,0.00046575,2]
[407959284,1772929841966,-500.0,0.00046575,2]
[407959285,1772929841975,-500.0,0.00046575,2]
[407959286,1772929841984,-500.0,0.00046575,2]
[407959287,1772929841993,-500.0,0.00046575,2]
[407959288,1772929842002,-500.0,0.00046575,2]
[407959289,1772929842013,-500.0,0.00046575,2]
[407959290,1772929842022,-500.0,0.00046575,2]
[407959291,1772929842032,-500.0,0.00046575,2]
[407959292,1772929842043,-500.0,0.00046575,2]
[407959293,1772929842054,-500.0,0.00046575,2]
[407959294,1772929842064,-500.0,0.00046575,2]
[407959295,1772929842073,-500.0,0.00046575,2]
[407959296,1772929842083,-500.0,0.00046575,2]
[407959297,1772929842092,-500.0,0.00046575,2]
[407959298,1772929842101,-239.09127896,0.00046575,2]
[407959299,1772929842111,-300.0,0.00046575,2]
[407959300,1772929842121,-300.0,0.00046575,2]
[407959301,1772929842131,-300.0,0.00046575,2]
[407959302,1772929842140,-300.0,0.00046575,2]
[407959303,1772929842149,-300.0,0.00046575,2]
[407959304,1772929842160,-300.0,0.00046575,2]
[407959305,1772929842169,-300.0,0.00046575,2]
[407959306,1772929842177,-300.0,0.00046575,2]
[407959307,1772929842187,-300.0,0.00046575,2]
[407959308,1772929842198,-300.0,0.00046575,2]
[407959309,1772929842207,-300.0,0.00046575,2]
[407959310,1772929842216,-300.0,0.00046575,2]
[407959311,1772929842225,-300.38319783,0.00046575,2]
[407959312,1772929842234,-357.080828,0.0004663,120]
[407959313,1772929842245,-150.0,0.00046651,120]
[407959314,1772929842255,-500.0,0.00046712,120]
[407959315,1772929842267,-150.1,0.00046807,3]
[407959316,1772929842278,-150.1,0.00046807,3]
[407959317,1772929842289,-1043.0,0.00046893,120]
[407959318,1772929842298,-400.0,0.000469,17]
[407959319,1772929842307,-1564.99,0.00047,120]
[407959321,1772929842317,-1729.31334845,0.00047021,19]
[407959323,1772929842326,-150.0,0.0004705,30]
[407959325,1772929842339,-158.22178593,0.0004705,30]
[407959326,1772929842348,-1889.11386187,0.00047085,2]
[407959327,1772929842357,-500.0,0.00047123,120]
[407959328,1772929842366,-151.0,0.0004715,60]
[407959329,1772929842375,-500.0,0.0004715,120]
[407959330,1772929842384,-507.72825556,0.0004715,30]
[407959331,1772929842393,-833.33,0.0004715,120]
[407959332,1772929842402,-833.33,0.0004715,120]
[407959333,1772929842411,-833.33,0.0004715,120]
[407959334,1772929842421,-833.33,0.0004715,120]
[407959335,1772929842430,-833.33,0.0004715,120]
[407959336,1772929842439,-833.33,0.0004715,120]
[407959337,1772929842448,-833.33,0.0004715,120]
[407959338,1772929842458,-833.33,0.0004715,120]
[407959339,1772929842467,-833.33,0.0004715,120]
[407959340,1772929842476,-833.33,0.0004715,120]
[407959341,1772929842485,-833.33,0.0004715,120]
[407959342,1772929842494,-833.33,0.0004715,120]
[407959343,1772929842503,-833.33,0.0004715,120]
[407959344,1772929842512,-833.33,0.0004715,120]
[407959345,1772929842521,-833.33,0.0004715,120]
[407959346,1772929842531,-833.33,0.0004715,120]
[407959347,1772929842540,-833.33,0.0004715,120]
[407959348,1772929842549,-833.33,0.0004715,120]
[407959349,1772929842558,-833.33,0.0004715,120]
[407959350,1772929842567,-833.33,0.0004715,120]
[407959351,1772929842576,-833.33,0.0004715,120]
[407959353,1772929842585,-833.33,0.0004715,120]
[407959355,1772929842594,-833.33,0.0004715,120]
[407959356,1772929842602,-833.41,0.0004715,120]
[407959357,1772929842611,-155.0,0.0004715,2]
[407959358,1772929842620,-155.0,0.0004715,2]
[407959359,1772929842629,-155.0,0.0004715,2]
[407959360,1772929842639,-155.0,0.0004715,2]
[407959361,1772929842647,-155.0,0.0004715,2]
[407959362,1772929842656,-155.0,0.0004715,2]
[407959363,1772929842666,-500.0,0.0004715,120]
[407959365,1772929842675,-500.0,0.0004715,120]
[407959367,1772929842684,-500.0,0.0004715,120]
[407959369,1772929842693,-499.87281004,0.0004715,120]
[407959370,1772929842703,-500.0,0.0004715,120]
[407959371,1772929842712,-597.51,0.0004715,120]
[407959372,1772929842721,-411.46407912,0.0004715,120]
[407959373,1772929842730,-245647.74069854,0.0004715,30]
[407959374,1772929842740,-895.19,0.0004715,22]
[407959375,1772929842749,-895.19,0.0004715,22]
[407959376,1772929842758,-895.19,0.0004715,22]
[407959377,1772929842767,-895.19,0.0004715,22]
[407959378,1772929842778,-895.19,0.0004715,22]
[407959379,1772929842787,-895.19,0.0004715,22]
[407959380,1772929842795,-895.19,0.0004715,22]
[407959381,1772929842805,-895.19,0.0004715,22]
[407959382,1772929842814,-895.19,0.0004715,22]
[407959383,1772929842823,-895.19,0.0004715,22]
[407959384,1772929842833,-895.19,0.0004715,22]
[407959385,1772929842842,-895.19,0.0004715,22]
[407959386,1772929842851,-895.19,0.0004715,22]
[407959387,1772929842860,-895.19,0.0004715,22]
[407959388,1772929842870,-895.19,0.0004715,22]
[407959389,1772929842879,-895.19,0.0004715,22]
[407959390,1772929842888,-895.19,0.0004715,22]
[407959391,1772929842897,-895.19,0.0004715,22]
[407959392,1772929842906,-895.19,0.0004715,22]
[407959393,1772929842916,-895.19,0.0004715,22]
[407959394,1772929842925,-895.19,0.0004715,22]
[407959395,1772929842934,-895.19,0.0004715,22]
[407959396,1772929842944,-895.19,0.0004715,22]
[407959397,1772929842954,-895.41358924,0.0004715,22]
[407959398,1772929842963,-252.67522445,0.0004715,120]
[407959399,1772929842972,-200.0,0.0004715,120]
[407959400,1772929842982,-2860.17,0.0004715,120]
[407959401,1772929842991,-2860.17,0.0004715,120]
[407959402,1772929843000,-2860.17,0.0004715,120]
[407959403,1772929843009,-2860.17,0.0004715,120]
[407959404,1772929843018,-2860.17,0.0004715,120]
[407959405,1772929843028,-2860.17,0.0004715,120]
[407959406,1772929843037,-2860.17,0.0004715,120]
[407959407,1772929843047,-2860.17,0.0004715,120]
[407959408,1772929843056,-2860.17,0.0004715,120]
[407959409,1772929843065,-2860.17,0.0004715,120]
[407959410,1772929843074,-2860.17,0.0004715,120]
[407959411,1772929843083,-2860.17,0.0004715,120]
[407959412,1772929843093,-2860.17,0.0004715,120]
[407959413,1772929843102,-2860.17,0.0004715,120]
[407959414,1772929843111,-2860.17,0.0004715,120]
[407959415,1772929843120,-2860.17,0.0004715,120]
[407959416,1772929843129,-2860.17,0.0004715,120]
[407959417,1772929843138,-2860.17,0.0004715,120]
[407959418,1772929843147,-2860.17,0.0004715,120]
[407959419,1772929843157,-2860.17,0.0004715,120]
[407959420,1772929843166,-2860.17,0.0004715,120]
[407959421,1772929843175,-2860.17,0.0004715,120]
[407959422,1772929843184,-2860.17,0.0004715,120]
[407959423,1772929843193,-2860.26283486,0.0004715,120]
[407959424,1772929843203,-186.0368437,0.00047157,4]
[407959425,1772929843212,-152.61,0.000472,14]
[407959426,1772929843221,-150.0,0.00047216,120]
[407959427,1772929843230,-150.0,0.00047511,120]
[407959428,1772929843240,-150.0,0.00047517,120]
[407959430,1772929843249,-150.0,0.00047537,120]
[407959431,1772929843259,-1043.0,0.00047547,120]
[407959433,1772929843268,-166.458,0.00047589,80]
[407959435,1772929843277,-150.0,0.00047707,120]
[407959437,1772929843286,-150.0,0.00047759,120]
[407959440,1772929843296,-3015.78,0.000478,120]
[407959441,1772929843305,-161.0,0.00047892,16]
[407959443,1772929843314,-150.0,0.00047926,120]
[407959445,1772929843323,-159.0,0.00048,90]
[407959447,1772929843333,-150.0,0.00048348,120]
[407959448,1772929843345,-150.0,0.00048348,120]
[407959449,1772929843355,-500.0,0.00048356,60]
[407959450,1772929843364,-500.0,0.00048356,60]
[407959451,1772929843374,-500.0,0.00048356,60]
[407959452,1772929843384,-159.0,0.00048356,90]
[407959453,1772929843393,-552.89073326,0.000485,2]
[407959454,1772929843402,-785.82331,0.000486,20]
[407959455,1772929843416,-847.0,0.00048729,31]
[407959456,1772929843426,-150.0,0.0004882,120]
[407959457,1772929843435,-520.18,0.000489,14]
[407959458,1772929843445,-5355238.24564148,0.0004897,15]
[407959459,1772929843492,-793.66649967,0.0004897,15]
[407959460,1772929843503,-8613.52390917,0.0004897,15]
[407959461,1772929843516,-1416.40035,0.0004897,15]
[407959462,1772929843527,-446.26987052,0.0004897,15]
[407959463,1772929843539,-17990.34073277,0.0004897,15]
[407959464,1772929843739,-511.0,0.00020033,2]
[407959465,1772929843818,-32579.90796573,0.00020033,2]
[407959466,1772929843828,-10774.21,0.00027397,10]
[407959467,1772929843838,-1341.0,0.00031805,2]
[407959468,1772929843847,-204.11323615,0.0003335,2]
[407959469,1772929843858,-1341.0,0.00034805,2]
[407959470,1772929843868,-242.054553,0.00039465,7]
[407959471,1772929843877,-150.0,0.0004385,30]
[407959472,1772929843886,-253.424256,0.00043855,30]
[407959473,1772929843895,-611.98,0.00045,30]
[407959474,1772929843905,-203.14,0.00045,30]
[407959475,1772929843914,-375.35,0.00045,30]
[407959476,1772929843923,-611.98,0.0004725,30]
[407959477,1772929843933,-160103.69538988,0.0004897,15]
[407959478,1772929843944,-68725.69263279,0.0004897,15]
[407959479,1772929843955,-5038.18168835,0.0004897,15]
[407959480,1772929843966,-506.97636662,0.0004897,15]
[407959481,1772929843976,-1323.95192,0.0004897,15]
[407959482,1772929843987,-931.86771549,0.0004897,15]
[407959483,1772929843997,-526.824,0.0004897,15]
[407959484,1772929844008,-829.11464261,0.0004897,15]
[407959497,1772929845470,-11050.80782977,0.00023767,2]
[407959498,1772929845723,-3949.19999999,0.00023767,2]
[407959499,1772929845734,-262.6,0.00023767,2]
[407959500,1772929845745,-10476.70578017,0.00023767,2]
[407959516,1772931008788,1927.25446488,0.0002,120]
[407959522,1772931031761,-1632.555,0.00015775,2]
[407959523,1772931031772,-166.458,0.00015775,2]
[407959525,1772931031826,-1200.0,0.00015799,2]
[407959527,1772931031836,-615.35625338,0.000158,2]
[407959549,1772931038617,-792.19845099,0.000158,2]
[407959550,1772931038628,-1605.0,0.000158,2]
[407959551,1772931038699,-1274.14311857,0.000158,2]
[407959552,1772931038710,-1880.92636508,0.000158,2]
[407959553,1772931038721,-659.99690301,0.000158,2]
[407959556,1772931039928,-725.5,0.000158,2]
[407959557,1772931039982,-335.38,0.000158,2]
[407959558,1772931040199,-17404.96699783,0.000158,2]
[407959559,1772931040209,-1779.7726511,0.000158,2]
[407959560,1772931040218,-305.42379726,0.000158,2]
[407959561,1772931040227,-194.53489522,0.00015887,2]
[407959562,1772931040236,-2395.19,0.00015887,2]
[407959563,1772931040245,-2395.19,0.00015887,2]
[407959564,1772931040254,-2395.19,0.00015887,2]
[407959565,1772931040263,-2395.19,0.00015887,2]
[407959566,1772931040272,-2395.19,0.00015887,2]
[407959567,1772931040281,-225.90870457,0.00015896,2]
[407959568,1772931040290,-111141.30908437,0.00015897,2]
[407959582,1772931042838,-29172.4896994,0.00015897,2]
[407959583,1772931042850,-9572.33665835,0.00015897,2]
[407959585,1772931045809,-1259.5,0.00015897,2]
[407959590,1772931371999,1150.0,0.0002,120]
[407959595,1772931710099,-280.0,0.00015579,2]
[407959596,1772931710122,-926.7615856,0.00015787,2]
[407959597,1772931710144,-793.2384144,0.00015797,2]
[407959598,1772931711349,-2000.0,0.00015797,2]
[407959599,1772931712224,-2000.0,0.00015797,2]
[407959600,1772931713113,-2000.0,0.00015797,2]
[407959601,1772931714022,-2000.0,0.00015797,2]
[407959602,1772931714884,-2000.0,0.00015797,2]
[407959603,1772931715927,-2000.0,0.00015797,2]
[407959604,1772931717216,-2000.0,0.00015797,2]
[407959605,1772931758512,569.67516494,0.00017,120]
[407959606,1772931758570,-1300.0,0.00015797,2]
[407959607,1772931779878,-5100.0,0.00015797,2]
[407959631,1772932231829,-261.0,0.00013519,2]
[407959632,1772932231840,-1051.6,0.00013519,2]
[407959633,1772932231850,-3240.0,0.00015464,2]
[407959634,1772932231859,-200.0,0.000156,5]
[407959635,1772932231869,-1762.27514874,0.000156,2]
[407959636,1772932231878,-500.0,0.00015673,2]
[407959637,1772932231887,-199.0,0.00015696,2]
[407959638,1772932231897,-300.0,0.00015696,2]
[407959639,1772932231906,-1200.0,0.00015696,2]
[407959640,1772932231916,-760.19378679,0.00015697,2]
[407959641,1772932231928,-2204.43761321,0.00015697,2]
[407959642,1772932231937,-43861.32550871,0.00015697,2]
[407959643,1772932231949,-18850.20029129,0.00015697,2]
[407959644,1772932231958,-81222.65927935,0.00015697,2]
[407959645,1772932231969,-12222.07038989,0.00015697,2]
[407959649,1772932237939,-314.67022092,0.00015697,2]
[407959650,1772932237950,-487.1150297,0.00015697,2]
[407959651,1772932237964,-5560.26673288,0.00015697,2]
[407959652,1772932237995,-499.40535172,0.00015697,2]
[407959653,1772932238006,-2064.17408572,0.00015697,2]
[407959654,1772932238106,-1274.6223246,0.00015697,2]
[407959655,1772932238118,-5035.14993764,0.00015697,2]
[407959656,1772932238165,-1524.18347377,0.00015697,2]
[407959658,1772932240071,-1015.96867818,0.00015697,2]
[407959659,1772932240155,-872.14,0.00015697,2]
[407959660,1772932240214,-750.0,0.00015697,2]
[407959661,1772932240382,-1655.35490122,0.00015697,2]
[407959669,1772932240557,-54.77349573,0.00015697,2]
[407959689,1772932243001,-809.74516329,0.00015697,2]
[407959690,1772932243216,-10339.22180376,0.00015697,2]
[407959691,1772932245844,-6621.0,0.00015697,2]
[407959692,1772932246114,-7359.0,0.00015697,2]
[407959693,1772932246161,-2883.77768621,0.00015697,2]
[407959698,1772933314491,150.0,0.00014565,120]
[407959699,1772933432094,-151.0,0.00014538,2]
[407959702,1772933432104,-150.0,0.00014565,2]
[407959705,1772933432114,-166.66,0.00014638,2]
[407959707,1772933432123,-200.0,0.000147,5]
[407959709,1772933432133,-195.95,0.00014718,2]
[407959711,1772933432146,-641.77,0.00014743,2]
[407959712,1772933432155,-19.6199999,0.000148,5]
[407959713,1772933432338,-380.3800001,0.000148,5]
[407959714,1772933432348,-200.0,0.00014805,2]
[407959715,1772933432358,-600.0,0.000149,5]
[407959716,1772933432369,-176.03,0.00014908,2]
[407959717,1772933432379,-166.66,0.00014946,2]
[407959718,1772933432389,-2194.99,0.00015016,2]
[407959719,1772933432399,-166.66,0.00015254,2]
[407959720,1772933432408,-698.8199999,0.00015343,2]
[407959721,1772933432421,-501.1800001,0.00015343,2]
[407959722,1772933432430,-23159.04128,0.00015344,2]
[407959723,1772933432440,-1190.94254486,0.00015344,2]
[407959724,1772933432449,-151.0,0.00015394,2]
[407959725,1772933432458,-162.83780358,0.00015396,2]
[407959726,1772933432467,-300.0,0.00015396,2]
[407959727,1772933432479,-144194.93296651,0.00015397,2]
[407959728,1772933432490,-34821.81542808,0.00015397,2]
[407959729,1772933432502,-1254.41808677,0.00015397,2]
[407959730,1772933432517,-5749.99994,0.00015397,2]
[407959731,1772933437477,-315.31506907,0.00015397,2]
[407959732,1772933437489,-308.29206342,0.00015397,2]
[407959733,1772933437500,-1209.33342989,0.00015397,2]
[407959739,1772933438274,-10044.92777175,0.00015397,2]
[407959740,1772933438285,-3015.00009,0.00015397,2]
[407959741,1772933438296,-603.22941727,0.00015397,2]
[407959742,1772933438307,-981.56,0.00015397,2]
[407959743,1772933438318,-14617.3573474,0.00015397,2]
[407959749,1772933438379,-14580.878639,0.00015397,2]
[407959750,1772933438396,-367.0,0.00015397,2]
[407960246,1772933443401,-379.52159358,0.00015397,2]
[407960265,1772933446068,-1485.62663592,0.00015344,2]
[407960266,1772933446078,-24622.14249816,0.00015397,2]
[407960267,1772933446371,-1378.01999995,0.00015397,2]
[407960268,1772933446488,-11980.75150906,0.00015397,2]
[407960275,1772933760217,503.63,0.0002,120]
[407960277,1772933994599,157.99,7.135e-05,2]
[407960278,1772933994859,157.99,7.928e-05,2]
[407960279,1772933995030,157.99,8.721e-05,2]
[407960280,1772933995244,157.99,9.514e-05,2]
[407960281,1772933995456,157.99,0.00010307,2]
[407960282,1772933995694,157.99,0.000111,2]
[407960283,1772934299390,876.33,0.00011507,2]
[407960284,1772934319611,-157.99,0.00011892,2]
[407960285,1772934319638,-157.99,0.00012685,2]
[407960286,1772934319667,-503.20443593,0.00013082,2]
[407960287,1772934319692,-500.0,0.00013095,2]
[407960288,1772934319717,-500.0,0.00013141,2]
[407960289,1772934319742,-500.0,0.00013186,2]
[407960290,1772934319769,-213.39827297,0.00013232,2]
[407960291,1772934319795,-157.99,0.00013478,2]
[407960292,1772934319821,-714.58,0.00014173,2]
[407960293,1772934319853,-157.99,0.00014271,2]
[407960294,1772934319878,-167.51,0.00014353,30]
[407960295,1772934319905,-1500.0,0.00014353,2]
[407960296,1772934319931,-1200.0,0.0001444,2]
[407960297,1772934319957,-3423.99,0.00014441,2]
[407960298,1772934319982,-188.0,0.00014517,2]
[407960299,1772934320008,-300.0,0.00014535,2]
[407960300,1772934320034,-1113.53379909,0.00014536,2]
[407960301,1772934320060,-3351.32,0.00014536,2]
[407960302,1772934320088,-4471.66,0.00014546,2]
[407960303,1772934320114,-500.0,0.00014614,2]
[407960304,1772934320140,-556.0,0.00014707,2]
[407960305,1772934320169,-3351.32,0.000149,2]
[407960306,1772934320195,-1136.0,0.00015108,2]
[407960307,1772934320222,-300.0,0.00015121,2]
[407960308,1772934320248,-150.0,0.00015122,2]
[407960309,1772934320272,-150.10489082,0.00015122,2]
[407960310,1772934320301,-500.0,0.00015122,2]
[407960311,1772934320325,-500.0,0.00015122,2]
[407960312,1772934320351,-150.0,0.00015122,2]
[407960313,1772934320376,-500.0,0.00015122,2]
[407960314,1772934320405,-500.0,0.00015122,2]
[407960315,1772934320430,-150.0,0.00015122,2]
[407960316,1772934320456,-500.0,0.00015122,2]
[407960317,1772934320482,-150.0,0.00015122,2]
[407960318,1772934320508,-500.0,0.00015122,2]
[407960319,1772934320533,-500.0,0.00015122,2]
[407960320,1772934320560,-199.45738296,0.00015131,2]
[407960321,1772934320585,-866.07625513,0.00015138,2]
[407960322,1772934320611,-201.75912456,0.00015177,2]
[407960323,1772934320637,-500.0,0.00015177,2]
[407960324,1772934320662,-500.0,0.00015177,2]
[407960325,1772934320687,-151.8439291,0.00015177,2]
[407960326,1772934320712,-500.0,0.00015177,2]
[407960327,1772934320739,-500.0,0.00015177,2]
[407960328,1772934320777,-500.0,0.00015177,2]
[407960329,1772934320805,-500.0,0.00015177,2]
[407960330,1772934320832,-500.0,0.00015177,2]
[407960331,1772934320857,-151.0,0.00015194,2]
[407960332,1772934320884,-151.0,0.00015194,2]
[407960333,1772934320911,-300.2194,0.00015197,2]
[407960334,1772934320937,-98354.1776,0.00015197,2]
[407960335,1772934320971,-67751.88490944,0.00015197,2]
[407960341,1772934632121,-150.0,0.00014298,2]
[407960343,1772934632134,-345.19096835,0.00014464,2]
[407960345,1772934632174,-1654.80903165,0.00014464,2]
[407960346,1772934632184,-922.73,0.000149,2]
[407960347,1772934632193,-1132.46096837,0.00015002,2]
[407960348,1772934632228,-67.53903163,0.00015002,2]
[407960349,1772934632238,-191.33258124,0.00015003,2]
[407960350,1772934632248,-31078.4051972,0.00015003,2]
[407960351,1772934632258,-6016.57218817,0.00015003,2]
[407960352,1772934632267,-250.0,0.00015068,2]
[407960353,1772934632276,-151.0,0.00015094,2]
[407960354,1772934632285,-74053.81826975,0.00015097,2]
[407960355,1772934632296,-38190.96993561,0.00015097,2]
[407960356,1772934632307,-20489.33011218,0.00015097,2]
[407960357,1772934632318,-76085.61289296,0.00015097,2]
[407960358,1772934632329,-463.95715754,0.00015097,2]
[407960359,1772934632339,-2613.4609972,0.00015097,2]
[407960364,1772934638293,-765033.12313476,0.00015097,2]
[407960365,1772934638303,-12019.7075509,0.00015103,2]
[407960366,1772934638313,-4042.1262527,0.00015103,2]
[407960367,1772934638324,-300.0,0.00015113,2]
[407960368,1772934638336,-500.0,0.00015114,2]
[407960369,1772934638344,-150.0,0.00015114,2]
[407960370,1772934638353,-150.0,0.00015114,2]
[407960371,1772934638362,-151.28025419,0.00015114,2]
[407960372,1772934638371,-150.0,0.00015114,2]
[407960373,1772934638381,-150.0,0.00015114,2]
[407960374,1772934638390,-500.0,0.00015114,2]
[407960375,1772934638399,-500.0,0.00015114,2]
[407960376,1772934638411,-500.0,0.00015114,2]
[407960377,1772934638420,-214.72781122,0.00015114,2]
[407960378,1772934638429,-500.0,0.00015114,2]
[407960379,1772934638438,-150.0,0.00015114,2]
[407960380,1772934638447,-150.0,0.00015114,2]
[407960381,1772934638456,-500.0,0.00015114,2]
[407960382,1772934638465,-500.0,0.00015114,2]
[407960383,1772934638474,-160.51941317,0.00015114,2]
[407960384,1772934638483,-158.52367001,0.00015114,2]
[407960385,1772934638492,-150.0,0.00015114,2]
[407960386,1772934638502,-150.0,0.00015114,2]
[407960387,1772934638511,-150.0,0.00015114,2]
[407960388,1772934638521,-150.04993963,0.00015114,2]
[407960389,1772934638531,-208.96329616,0.00015114,2]
[407960390,1772934638540,-500.0,0.00015114,2]
[407960391,1772934638549,-500.0,0.00015114,2]
[407960392,1772934638736,-203.57490433,0.00015114,2]
[407960393,1772934638747,-150.0,0.00015114,2]
[407960394,1772934638757,-500.0,0.00015169,2]
[407960395,1772934638767,-500.0,0.00015169,2]
[407960397,1772934638776,-150.0,0.00015169,2]
[407960399,1772934638786,-150.0,0.00015169,2]
[407960401,1772934638795,-150.0,0.00015169,2]
[407960403,1772934638804,-150.0,0.00015169,2]
[407960405,1772934638814,-500.0,0.00015169,2]
[407960407,1772934638823,-500.0,0.00015169,2]
[407960409,1772934638833,-500.0,0.00015169,2]
[407960412,1772934638842,-500.0,0.00015169,2]
[407960413,1772934638851,-150.0,0.00015169,2]
[407960415,1772934638860,-500.0,0.00015169,2]
[407960417,1772934638869,-500.0,0.00015169,2]
[407960419,1772934638879,-150.0,0.00015169,2]
[407960420,1772934638888,-150.0,0.00015169,2]
[407960421,1772934638897,-150.0,0.00015169,2]
[407960422,1772934638907,-150.0,0.00015169,2]
[407960423,1772934638916,-500.0,0.00015169,2]
[407960424,1772934638927,-500.0,0.00015169,2]
[407960425,1772934638936,-150.0,0.00015169,2]
[407960426,1772934638945,-302.5866713,0.00015173,2]
[407960427,1772934638954,-320.23053085,0.00015173,2]
[407960428,1772934638963,-206.92107206,0.00015186,2]
[407960429,1772934638973,-151.0,0.00015194,2]
[407960430,1772934638982,-1002.24583529,0.00015196,2]
[407960431,1772934638992,-212502.49769056,0.00015197,2]
[407960432,1772934639001,-505.0,0.00015197,2]
[407960433,1772934639010,-151.0,0.00015206,2]
[407960434,1772934639019,-21087.22986223,0.00015209,2]
[407960435,1772934639029,-500.0,0.00015224,2]
[407960436,1772934639039,-201.40872416,0.00015224,2]
[407960437,1772934639048,-150.0,0.00015224,2]
[407960438,1772934639062,-150.0,0.00015224,2]
[407960439,1772934639074,-150.0,0.00015224,2]
[407960440,1772934639085,-500.0,0.00015224,2]
[407960441,1772934639096,-501.46113503,0.00015224,2]
[407960442,1772934639106,-500.0,0.00015224,2]
[407960443,1772934639115,-500.0,0.00015224,2]
[407960444,1772934639125,-202.95197242,0.00015224,2]
[407960445,1772934639134,-500.0,0.00015224,2]
[407960446,1772934639145,-500.0,0.00015224,2]
[407960447,1772934639155,-190.99750862,0.00015224,2]
[407960448,1772934639164,-204.38142063,0.00015224,2]
[407960449,1772934639174,-287.00607474,0.00015224,2]
[407960450,1772934639184,-150.0,0.00015224,2]
[407960451,1772934639194,-500.0,0.00015224,2]
[407960452,1772934639204,-500.0,0.00015224,2]
[407960453,1772934639214,-150.0,0.00015224,2]
[407960454,1772934639225,-3351.32,0.00015263,2]
[407960455,1772934639236,-500.0,0.00015273,2]
[407960456,1772934639246,-500.0,0.00015278,2]
[407960457,1772934639257,-150.0,0.00015278,2]
[407960458,1772934639267,-150.0,0.00015278,2]
[407960459,1772934639276,-150.0,0.00015278,2]
[407960460,1772934639285,-502.39484554,0.00015278,2]
[407960461,1772934639294,-409.93316597,0.00015278,2]
[407960462,1772934639303,-309.09008133,0.00015278,2]
[407960463,1772934639312,-501.34395672,0.00015278,2]
[407960464,1772934639322,-502.58560742,0.00015278,2]
[407960465,1772934639331,-150.0,0.00015278,2]
[407960466,1772934639340,-502.61005398,0.00015278,2]
[407960467,1772934639349,-193.28021837,0.00015278,2]
[407960468,1772934639359,-211.41756571,0.00015278,2]
[407960469,1772934639368,-500.0,0.00015288,2]
[407960470,1772934639379,-151.0,0.00015288,2]
[407960471,1772934639388,-500.0,0.00015288,2]
[407960472,1772934639399,-151.0,0.00015288,2]
[407960473,1772934639410,-500.0,0.00015288,2]